[Event "WSTCC-50 2024"]
[Site "Krakow"]
[Date "2024.07.06"]
[Round "5.4"]
[White "Ortega, Lexy"]
[Black "Arnason, Jon L"]
[Result "1-0"]
[ECO "D25"]
[WhiteElo "2386"]
[BlackElo "2421"]
[Annotator "TA"]
[PlyCount "97"]
[EventDate "2024.07.01"]
[EventType "team-tourn"]
[EventCountry "POL"]
[SourceTitle "playchess.com"]
[Source "ChessBase"]
[SourceQuality "1"]
[TimeControl "40/5400+30:1800+30"]

{[%evp 27,97,40,45,56,50,0,0,0,0,-34,-47,-42,-24,-56,-1,-67,-75,-95,-69,-81,-74,-56,-2,-25,43,43,46,27,81,97,118,91,85,87,96,66,102,51,106,-45,105,-132,600,598,544,648,665,626,704,703,684,656,655,650,619,560,5803,5805,29963,29965,29968,29969,29970,29972,29979,29980,29980,29979,29979,29980,29980,29980]} 1. d4 {[%emt 0:00:04]} d5 {[%emt 0:00:19]} 2. Nf3 {[%emt 0:00:25]} Nf6 {[%emt 0:00:10]} 3. c4 {[%emt 0:00:05]} dxc4 {[%emt 0:00:17]} 4. e3 {[%emt 0:00:06]} a6 {[%emt 0:00:22]} 5. Bxc4 {[%emt 0:00:03]} e6 {[%emt 0:00:09]} 6. O-O {[%emt 0:01:14]} b5 {[%emt 0:00:59]} 7. Bd3 {[%emt 0:00:27]} c5 {[%emt 0:03:11]} 8. a4 {[%emt 0:00:24] D26: Queen's Gambit Accepted: 4 e3 e6 5 Bxc5 c5 sidelines.} b4 {[%emt 0:01:42]} 9. Nbd2 {[%emt 0:07:44]} Bb7 {[%emt 0:10:38]} 10. Nc4 {[%emt 0:00:37] 10.Qe2 is becoming the main line.} Nbd7 {[%emt 0:00:56]} 11. a5 {[%emt 0:03:51]} Qc7 {[%emt 0:02:54]} 12. Qe2 {[%emt 0:18:23]} Rc8 $146 {[%emt 0:16:50]} ({Predecessor:} 12... Be7 13. b3 O-O 14. Bb2 Rfd8 15. Rac1 Rac8 16. Rfd1 Qb8 17. Bb1 h6 18. Nfe5 cxd4 19. exd4 {1-0 Brunner,N (2418)-Maly,A (2370) PNWCC Online Blitz JP 24 2021 (7)}) 13. Nce5 {[%emt 0:18:22]} Ra8 {[%emt 0:05:02]} 14. Bd2 {[%emt 0:11:47]} Nxe5 {[%emt 0:06:37]} 15. Nxe5 {[%emt 0:07:49]} Bd6 {[%emt 0:00:41]} 16. Nc4 {[%emt 0:02:55]} (16. f4 $14) 16... Bxh2+ $11 {[%emt 0:03:27]} 17. Kh1 {[%emt 0:00:01]} Rd8 {[%emt 0:15:00]} 18. f4 {[%emt 0:01:36]} Bg3 {[%emt 0:00:04]} 19. Ne5 {[%emt 0:04:13]} Qe7 {[%emt 0:03:41]} (19... cxd4 20. Bxb4 Qb8 21. Bc2 Bxg2+ 22. Qxg2 Qxb4 23. Ba4+ (23. Qxg3 O-O $18) 23... Kf8 24. Nc6 $18 (24. Qxg3 d3 $18)) 20. Kg1 {[%emt 0:04:55]} O-O {[%emt 0:05:12]} (20... cxd4 $15 21. Bxa6 Bxa6 22. Qxa6 O-O) 21. Rac1 {[%emt 0:01:07]} (21. dxc5 $1 $11 Qxc5 22. Rac1 Qxa5 23. Rc4) 21... cxd4 $15 {[%emt 0:04:02]} 22. e4 {[%emt 0:00:37]} g6 $1 {[%emt 0:04:06]} 23. Nc6 {[%emt 0:04:31]} Bxc6 {[%emt 0:00:55]} 24. Rxc6 {[%emt 0:00:01]} Nh5 {[%emt 0:03:47]} (24... e5 $15 25. f5 Nh5) 25. Qg4 $1 $11 {[%emt 0:01:16]} f5 {[%emt 0:03:29]} (25... e5 $11 26. fxe5 Qxe5 (26... Bxe5 27. Rxa6 Rde8 28. Rb6 $16)) 26. exf5 $14 {[%emt 0:04:39]} exf5 {[%emt 0:00:07]} 27. Qg5 {[%emt 0:00:26]} (27. Rxg6+ {looks sharper.} hxg6 28. Qxg6+ Kh8 29. Qxh5+ Kg7 30. Bxf5 Qh4 31. Qxh4 Bxh4 32. Bd3) 27... Qxg5 {[%emt 0:08:10]} (27... Rf6 $1 $11 28. Rfc1 (28. Rxa6 Rdf8 $17) (28. Bxa6 $2 h6 $19) 28... Re8) 28. fxg5 $16 {[%emt 0:00:01]} Rd6 {[%emt 0:00:18]} 29. Rxa6 {[%emt 0:01:07]} Rxa6 {[%emt 0:00:23]} 30. Bxa6 {[%emt 0:00:01]} Bd6 {[%emt 0:00:40]} 31. Rc1 {[%emt 0:01:05]} (31. Bc4+ Kg7 $15) 31... Ng3 {[%emt 0:00:09]} 32. Rc6 {[%emt 0:01:09]} Ne4 {[%emt 0:00:12]} (32... Rd8 $1 $14) 33. Bb7 $2 {[%emt 0:03:46]} (33. Bc4+ $1 $16 Kg7 34. Bc1) 33... Bc5 {[%emt 0:01:08]} (33... Rd8 $15 {stays ahead.} 34. Rxd6 (34. a6 Bc5 $17) 34... Nxd6 35. Bd5+ Kg7 (35... Nf7 36. Bb7 $15) 36. Bxb4 Ne4) 34. a6 $2 {[%emt 0:02:08]} (34. Bf4 $1 $16 {is forced if you want to stay better.}) 34... d3+ $2 {[%emt 0:00:07][%mdl 8192] [#]} (34... Rd8 $17 35. Bc8 d3+ 36. Kh1 Kf7) 35. Rxc5 $1 $18 {[%emt 0:00:13]} Nxc5 {[%emt 0:00:05]} 36. Bd5+ {[%emt 0:00:11]} (36. Bxb4 $2 Nxb7 37. axb7 (37. Bxf8 $2 d2 $19) 37... Rb8 $19) 36... Kg7 {[%emt 0:00:12]} 37. a7 {[%emt 0:00:08]} Ne4 {[%emt 0:00:24]} 38. Bxb4 {[%emt 0:00:19]} (38. a8=B $2 Nxd2 39. Bac6 Ne4 $19) 38... Re8 {[%emt 0:00:51]} 39. Bc6 {[%emt 0:01:37]} (39. a8=B $2 d2 (39... Nxg5 40. Bac6 $14) 40. Bxd2 Nxd2 $19) 39... Rd8 {[%emt 0:00:39]} 40. a8=Q (40. a8=B $2 {is the wrong capture.} d2 (40... Nxg5 41. Bc3+ Kf8 42. Bd2 $14) 41. Bxd2 Nxd2 $19) 40... Rxa8 {[%emt 0:00:11]} 41. Bxa8 {[%emt 0:30:31]} d2 {[%emt 0:30:09]} 42. Bxd2 $1 {[%emt 0:00:09]} Nxd2 {[%emt 0:00:05] [#]} 43. Bd5 $1 {[%emt 0:00:18]} Kf8 {[%emt 0:00:00]} 44. Kf2 {[%emt 0:00:00]} Ke7 {[%emt 0:00:00]} 45. Ke2 {[%emt 0:00:00]} Kd6 {[%emt 0:00:00]} 46. Kxd2 {[%emt 0:00:00]} Kxd5 {[%emt 0:00:00]} 47. Kd3 {[%emt 0:00:00]} Kc5 {[%emt 0:00:00]} 48. Kc3 {[%emt 0:00:00]} Kd5 {[%emt 0:00:00]} 49. b4 {[%emt 0:00:00]} 1-0

[Event "WSTCC-50 2024"]
[Site "Krakow"]
[Date "2024.07.06"]
[Round "5.4"]
[White "Findlay, Ian T."]
[Black "Jezierska, Ivona"]
[Result "1/2-1/2"]
[ECO "B08"]
[WhiteElo "2118"]
[BlackElo "2079"]
[Annotator "RC"]
[PlyCount "77"]
[EventDate "2024.07.01"]
[EventType "team-tourn"]
[EventCountry "POL"]
[SourceTitle "playchess.com"]
[Source "ChessBase"]
[SourceQuality "1"]
[TimeControl "40/5400+30:1800+30"]

1. e4 {[%emt 0:00:04]} d6 {[%emt 0:00:24]} 2. d4 {[%emt 0:00:11]} g6 {[%emt 0:00:54]} 3. Nc3 {[%emt 0:00:20]} Bg7 {[%emt 0:00:08]} 4. Nf3 {[%emt 0:00:13]} Nf6 {[%emt 0:00:21]} 5. Be2 {[%emt 0:00:15]} O-O {[%emt 0:00:55]} 6. O-O {[%emt 0:00:09]} c6 {[%emt 0:00:52]} 7. a4 {[%emt 0:00:10]} Qc7 {[%emt 0:01:57]} 8. a5 {[%emt 0:01:28]} Nbd7 {[%emt 0:07:57]} 9. Be3 {[%emt 0:00:44]} e5 {[%emt 0:03:18]} 10. dxe5 {[%emt 0:00:52]} dxe5 {[%emt 0:01:08]} 11. Nd2 {[%emt 0:04:19]} Rd8 {[%emt 0:05:15]} 12. Qc1 {[%emt 0:02:02]} b6 {[%emt 0:08:18]} 13. axb6 {[%emt 0:00:22]} Nxb6 {[%emt 0:00:08]} 14. Nb3 {[%emt 0:04:25]} Be6 {[%emt 0:04:32]} 15. Rd1 {[%emt 0:04:33]} Nfd7 {[%emt 0:14:14]} 16. Nc5 {[%emt 0:05:19]} Nxc5 {[%emt 0:07:54]} 17. Bxc5 {[%emt 0:00:11]} Bf8 {[%emt 0:00:51]} 18. Qe3 {[%emt 0:04:46]} Rxd1+ {[%emt 0:10:30]} 19. Rxd1 {[%emt 0:01:23]} Nd7 {[%emt 0:00:25]} 20. Bxf8 {[%emt 0:01:07]} Kxf8 {[%emt 0:01:17]} 21. Ra1 {[%emt 0:08:19]} Qb6 {[%emt 0:05:22]} 22. Qxb6 {[%emt 0:00:27]} Nxb6 {[%emt 0:00:12]} 23. Ra5 {[%emt 0:02:14]} f6 {[%emt 0:03:34]} 24. g3 {[%emt 0:05:47]} Ke7 {[%emt 0:01:34]} 25. f4 {[%emt 0:01:16]} Kd6 {[%emt 0:00:31]} 26. Kf2 {[%emt 0:00:22]} Bc4 {[%emt 0:04:32]} 27. b3 {[%emt 0:02:37]} Bxe2 {[%emt 0:00:39]} 28. Kxe2 {[%emt 0:00:07]} Nd7 {[%emt 0:01:17]} 29. Na4 {[%emt 0:00:44]} Kc7 {[%emt 0:01:23]} 30. Nb2 {[%emt 0:02:19]} Kb7 {[%emt 0:04:48]} 31. Nc4 {[%emt 0:06:41]} c5 {[%emt 0:04:33]} 32. Ra1 {[%emt 0:01:29]} Nb6 {[%emt 0:01:49]} 33. Nxb6 {[%emt 0:02:04]} Kxb6 {[%emt 0:00:17]} 34. fxe5 {[%emt 0:00:10]} fxe5 {[%emt 0:00:11]} 35. Rf1 {[%emt 0:00:12]} Rc8 {[%emt 0:01:48]} 36. Rf6+ {[%emt 0:16:26]} Rc6 {[%emt 0:00:13]} 37. Rf7 {[%emt 0:00:13]} Rc7 {[%emt 0:00:07]} 38. Rf6+ {[%emt 0:00:09]} Rc6 {[%emt 0:00:10]} 39. Rf7 1/2-1/2

[Event "WSTCC-50 2024"]
[Site "Krakow"]
[Date "2024.07.06"]
[Round "5.4"]
[White "Kozma, Edit"]
[Black "Buriene, Regina"]
[Result "1/2-1/2"]
[ECO "C65"]
[WhiteElo "1859"]
[BlackElo "1904"]
[Annotator "NA RC"]
[PlyCount "37"]
[EventDate "2024.07.01"]
[EventType "team-tourn"]
[EventCountry "POL"]
[SourceTitle "playchess.com"]
[Source "ChessBase"]
[SourceQuality "1"]
[TimeControl "40/5400+30:1800+30"]

1. e4 {[%emt 0:00:17]} e5 {[%emt 0:00:11]} 2. Nf3 {[%emt 0:00:22]} Nc6 {[%emt 0:00:12]} 3. Bb5 {[%emt 0:00:21]} Nf6 {[%emt 0:01:14]} 4. O-O {[%emt 0:08:43]} Be7 {[%emt 0:01:52]} 5. Re1 {[%emt 0:02:03]} d6 {[%emt 0:01:25]} 6. d4 {[%emt 0:02:45]} exd4 {[%emt 0:16:43]} 7. Nxd4 {[%emt 0:02:09]} Bd7 {[%emt 0:03:35]} 8. Nxc6 {[%emt 0:02:34]} Bxc6 {[%emt 0:01:39]} 9. Bxc6+ {[%emt 0:00:16]} bxc6 {[%emt 0:00:13]} 10. b3 {[%emt 0:08:16]} O-O {[%emt 0:00:27]} 11. Bb2 {[%emt 0:00:14]} Re8 {[%emt 0:05:11]} 12. Nd2 {[%emt 0:07:44]} Qc8 {[%emt 0:05:25]} 13. Nf1 {[%emt 0:08:38]} Qg4 {[%emt 0:14:57]} 14. Qxg4 {[%emt 0:03:51]} Nxg4 {[%emt 0:00:06]} 15. h3 {[%emt 0:08:57]} Bf6 {[%emt 0:00:54]} 16. Bxf6 {[%emt 0:04:39]} Nxf6 {[%emt 0:00:02]} 17. Ng3 {[%emt 0:02:23]} Nd7 {[%emt 0:00:40]} 18. c4 {[%emt 0:02:39]} Kf8 19. Rad1 1/2-1/2

[Event "WSTCC-50 2024"]
[Site "Krakow"]
[Date "2024.07.06"]
[Round "5.5"]
[White "Ehlvest, Jaan"]
[Black "Adams, Michael"]
[Result "1/2-1/2"]
[ECO "E24"]
[WhiteElo "2528"]
[BlackElo "2670"]
[Annotator "TA"]
[PlyCount "27"]
[EventDate "2024.07.01"]
[EventType "team-tourn"]
[EventCountry "POL"]
[SourceTitle "playchess.com"]
[Source "ChessBase"]
[SourceQuality "1"]
[TimeControl "40/5400+30:1800+30"]

{[%evp 17,27,-28,-13,-49,0,-56,12,0,19,0,0,0]} 1. d4 {[%emt 0:03:02]} Nf6 {[%emt 0:00:11]} 2. c4 {[%emt 0:00:09]} e6 {[%emt 0:00:06]} 3. Nc3 {[%emt 0:00:04]} Bb4 {[%emt 0:00:08]} 4. a3 {[%emt 0:00:04]} Bxc3+ {[%emt 0:00:09]} 5. bxc3 {[%emt 0:00:04]} d6 {[%emt 0:02:04]} 6. f3 {[%emt 0:00:17]} c5 {[%emt 0:01:23]} 7. e4 {[%emt 0:04:50]} Nc6 {[%emt 0:00:15]} 8. Be3 {[%emt 0:00:19]} b6 {[%emt 0:06:39]} 9. Bd3 {[%emt 0:00:10]} O-O {[%emt 0:03:09]} 10. Ne2 {[%emt 0:02:04]} Nd7 {[%emt 0:04:48]} (10... Na5 $15) 11. O-O {[%emt 0:05:07]} (11. Nc1 $11) 11... cxd4 {[%emt 0:06:02]} (11... Na5 $15) 12. cxd4 $11 {[%emt 0:00:18] The position is equal.} e5 {[%emt 0:00:04]} 13. f4 {[%emt 0:06:38]} exd4 {[%emt 0:10:35]} 14. Nxd4 {[%emt 0:00:42] Black did not feel at home in the position after the opening.   Weighted Error Value: White=0.39/Black=0.29 (precise) .  Mistake:       	White=1     	Black=2      OK:         	---       	Black=2} 1/2-1/2

[Event "WSTCC-50 2024"]
[Site "Krakow"]
[Date "2024.07.06"]
[Round "5.5"]
[White "Schuster, Karsten"]
[Black "Crocker, Philip J"]
[Result "1-0"]
[ECO "D43"]
[WhiteElo "2307"]
[BlackElo "2122"]
[Annotator "TA"]
[PlyCount "107"]
[EventDate "2024.07.01"]
[EventType "team-tourn"]
[EventCountry "POL"]
[SourceTitle "playchess.com"]
[Source "ChessBase"]
[SourceQuality "1"]
[TimeControl "40/5400+30:1800+30"]

{[%evp 26,107,-8,-12,-8,-12,-3,-4,-14,0,0,-13,-10,-5,0,0,27,16,27,18,21,8,53,56,50,0,13,0,0,0,0,0,0,0,0,0,0,0,0,0,0,0,0,0,0,0,0,0,0,0,122,125,114,128,122,140,175,164,210,200,193,191,221,214,296,272,425,374,411,352,360,347,578,594,545,541,1280,1254,1256,1272,1353,1312,29990,29991]} 1. d4 {[%emt 0:00:02]} d5 {[%emt 0:00:10]} 2. c4 {[%emt 0:00:16]} c6 {[%emt 0:00:08]} 3. Nf3 {[%emt 0:00:15]} Nf6 {[%emt 0:00:25]} 4. Nc3 {[%emt 0:00:19]} e6 {[%emt 0:00:37]} 5. cxd5 {[%emt 0:00:11]} exd5 {[%emt 0:00:44]} 6. Bg5 {[%emt 0:00:39]} Be7 {[%emt 0:01:40]} 7. Qc2 {[%emt 0:00:06]} g6 {[%emt 0:02:14]} 8. e3 {[%emt 0:00:10]} Bf5 {[%emt 0:00:45]} 9. Bd3 {[%emt 0:00:05]} Bxd3 {[%emt 0:00:40]} 10. Qxd3 {[%emt 0:00:05]} Nbd7 {[%emt 0:01:20]} 11. Rb1 {[%emt 0:03:54]} a5 {[%emt 0:03:51]} 12. a3 {[%emt 0:05:48]} O-O {[%emt 0:01:34]} 13. O-O {[%emt 0:00:42]} Re8 {[%emt 0:01:03]} 14. Rfc1 {[%emt 0:04:40] [#]} Ne4 $1 {[%emt 0:03:49]} 15. Bf4 {[%emt 0:00:34]} (15. Bxe7 Qxe7) 15... Bd6 {[%emt 0:05:23]} 16. Bxd6 {[%emt 0:14:37]} Nxd6 {[%emt 0:00:09] The position is equal.} 17. b3 {[%emt 0:00:04]} f5 {[%emt 0:08:15]} 18. Ne2 {[%emt 0:05:36]} Qf6 {[%emt 0:03:31]} 19. h4 {[%emt 0:10:08]} Qe7 {[%emt 0:07:45]} 20. Nf4 {[%emt 0:01:40]} Nf8 {[%emt 0:10:26]} 21. g3 {[%emt 0:04:52]} Ne6 {[%emt 0:02:43]} 22. Nxe6 {[%emt 0:01:57]} Qxe6 {[%emt 0:00:04]} 23. Ne5 {[%emt 0:00:13]} Nf7 {[%emt 0:05:09]} 24. Nxf7 {[%emt 0:04:18]} Kxf7 {[%emt 0:00:29]} 25. Rc5 {[%emt 0:01:30]} Qe4 {[%emt 0:04:15]} 26. Rd1 {[%emt 0:01:01]} Qxd3 {[%emt 0:04:53]} 27. Rxd3 $11 {[%emt 0:00:05][%mdl 4096] Endgame. KRR-KRR} Re6 {[%emt 0:02:00]} 28. Kg2 {[%emt 0:00:15]} Kf6 {[%emt 0:04:30]} 29. Kf3 {[%emt 0:00:09]} h6 {[%emt 0:01:16]} 30. Rd1 {[%emt 0:00:15]} Ke7 {[%emt 0:04:16]} 31. Rg1 {[%emt 0:03:35]} Kd6 {[%emt 0:01:06]} 32. Rgc1 {[%emt 0:03:26]} Kd7 {[%emt 0:02:02]} 33. Rb1 {[%emt 0:01:42]} Kc7 {[%emt 0:05:05]} 34. a4 {[%emt 0:02:45]} b6 {[%emt 0:02:14]} 35. Rcc1 {[%emt 0:01:58]} Kb7 {[%emt 0:01:20]} 36. Rg1 {[%emt 0:04:00]} c5 {[%emt 0:03:07]} 37. Rgd1 {[%emt 0:03:14]} c4 {[%emt 0:02:07]} (37... Kc6 $11) 38. bxc4 $16 {[%emt 0:00:56] Black is on the road to losing.} dxc4 {[%emt 0:00:05]} 39. Rdc1 {[%emt 0:00:08]} Rc8 {[%emt 0:00:44]} 40. Rc3 {[%emt 0:00:06]} Ka6 {[%emt 0:01:27] [#]} 41. Rb5 $1 {[%emt 0:30:45]} h5 {[%emt 0:31:17]} (41... Rf6 {was worth a try.} 42. Kf4 Rf7) 42. Kf4 $18 {[%emt 0:02:02]} Re4+ {[%emt 0:01:30]} 43. Kg5 {[%emt 0:01:17]} Re6 {[%emt 0:02:23]} 44. f3 {[%emt 0:01:07][%cal Bf2f3,Bf3e4,Be4e5,Be5e6][%mdl 32]} Rd6 {[%emt 0:03:03]} 45. d5 {[%emt 0:07:30][%cal Bd4d5,Bd5d6,Bd6d7][%mdl 32]} Re8 {[%emt 0:00:00] [#]} (45... Rd7 $142 46. Kxg6 Kb7) 46. Kf4 $1 {[%emt 0:00:00]} (46. Rxc4 Rxe3 47. Kf4 (47. Rc6 Rxc6 48. dxc6 Re6 $11) 47... Re1 $16) 46... Rc8 {[%emt 0:00:00]} 47. e4 {[%emt 0:00:00]} fxe4 {[%emt 0:00:00]} 48. fxe4 {[%emt 0:00:00]} Rf6+ $2 {[%emt 0:00:00]} (48... g5+ 49. Kxg5 Rdd8) 49. Kg5 {[%emt 0:00:00]} Rf1 {[%emt 0:00:00]} 50. d6 $1 {[%emt 0:00:00]} (50. Kxg6 Re1 $14) 50... Ra1 {[%emt 0:00:00]} 51. d7 {[%emt 0:00:00]} (51. Kxg6 Rd1 $16) 51... Rd8 {[%emt 0:00:00]} 52. Rd5 {[%emt 0:00:00]} ({Not} 52. Kxg6 Rxd7 53. Rxc4 (53. Kxh5 Rxa4 54. Rf5 Rc7 $17) 53... Rxa4 $16) 52... Rxa4 {[%emt 0:00:00]} 53. e5 {[%emt 0:00:00][%cal Oe5e6] And now e6! would win.} b5 {[%emt 0:00:00]} 54. e6 {[%emt 0:00:00] Weighted Error Value: White=0.05 (flawless) /Black=0.47.  Mistake:       	---       	Black=4      Inaccurate:     	White=1     	Black=4      OK:         	White=12    	Black=14     Best:        	White=1     	---        Strong:       	White=3     	---} 1-0

[Event "WSTCC-50 2024"]
[Site "Krakow"]
[Date "2024.07.06"]
[Round "5.5"]
[White "Delaney, John"]
[Black "Lima, Darcy"]
[Result "0-1"]
[ECO "B67"]
[WhiteElo "2167"]
[BlackElo "2392"]
[Annotator "TA"]
[PlyCount "132"]
[EventDate "2024.07.01"]
[EventType "team-tourn"]
[EventCountry "POL"]
[SourceTitle "playchess.com"]
[Source "ChessBase"]
[SourceQuality "1"]
[TimeControl "40/5400+30:1800+30"]

{[%evp 29,132,0,0,0,0,0,18,0,0,0,0,-9,-7,-13,-13,-15,-4,-28,-21,-28,-20,-32,0,-36,-31,-32,-24,-45,-40,-62,-40,-56,-47,-58,-43,-43,-37,-38,-46,-41,-55,-50,-57,-39,-30,-24,-16,-17,-10,-8,-8,-8,-7,-8,0,-12,-8,-23,-24,-14,-14,-99,-112,-181,-152,-414,-291,-286,-290,-246,-224,-559,-502,-818,-692,-2130,-1700,-1018,-1006,-6250,-6118,-1619,-241,-1817,-1736,-29973,-29974,-29978,-29979,-29979,-29980,-29980,-29981,-29978,-29975,-29972,-29972,-29987,-29988,-29989,-29990,-29992,-29986,-29990,-29991]} 1. e4 {[%emt 0:00:05]} c5 {[%emt 0:00:15]} 2. Nf3 {[%emt 0:00:34]} d6 {[%emt 0:00:06]} 3. d4 {[%emt 0:00:34]} cxd4 {[%emt 0:00:07]} 4. Nxd4 {[%emt 0:00:08]} Nf6 {[%emt 0:00:09]} 5. Nc3 {[%emt 0:00:07]} Nc6 {[%emt 0:00:12]} 6. Bg5 {[%emt 0:02:35]} e6 {[%emt 0:00:37]} 7. Qd2 {[%emt 0:02:01]} a6 {[%emt 0:00:28]} 8. O-O-O {[%emt 0:02:28]} Bd7 {[%emt 0:00:30]} 9. f3 {[%emt 0:02:13]} Nxd4 {[%emt 0:00:19]} 10. Qxd4 {[%emt 0:00:07]} Be7 {[%emt 0:00:05] B67: Sicilian: Richter-Rauzer: 7...a6 8 0-0-0 Bd7, lines without 9 f4 Be7.} 11. Kb1 {[%emt 0:07:50]} Qc7 {[%emt 0:03:32]} 12. Be3 {[%emt 0:00:35]} h5 {[%emt 0:00:17]} 13. Qb6 $146 {[%emt 0:05:29]} ({Predecessor:} 13. Qd2 b5 14. Bd3 b4 15. Ne2 a5 16. g3 a4 17. h3 a3 18. b3 d5 19. g4 dxe4 20. fxe4 Bc6 21. Ng3 Qxg3 22. Bf4 Qf3 {0-1 Hnydiuk,A (2361)-Shankland,S (2710) Titled Tuesday intern op 01st Nov Early blitz 2022 (1)}) 13... Qxb6 {[%emt 0:02:11]} 14. Bxb6 {[%emt 0:00:09]} Rc8 {[%emt 0:07:49]} 15. Bd3 {[%emt 0:06:23]} Bc6 {[%emt 0:00:18]} 16. Rhe1 {[%emt 0:02:38]} Nd7 {[%emt 0:05:21]} 17. Bd4 {[%emt 0:01:20]} Bf6 {[%emt 0:01:13]} 18. Bxf6 {[%emt 0:03:50]} Nxf6 {[%emt 0:01:28]} 19. Ne2 {[%emt 0:09:44]} h4 {[%emt 0:03:48]} 20. Nd4 {[%emt 0:05:09]} Ke7 {[%emt 0:06:13]} 21. Bf1 {[%emt 0:04:46]} Nd7 {[%emt 0:10:09]} 22. c4 {[%emt 0:01:32]} a5 {[%emt 0:00:16]} 23. Re3 {[%emt 0:01:59]} Nc5 {[%emt 0:02:09]} 24. Rd2 {[%emt 0:00:32]} b6 {[%emt 0:03:52]} 25. b3 {[%emt 0:07:22]} Bd7 {[%emt 0:06:05]} 26. e5 {[%emt 0:01:20]} dxe5 {[%emt 0:03:46]} 27. Rxe5 {[%emt 0:00:08]} Kf6 {[%emt 0:05:22]} 28. Re3 {[%emt 0:04:36]} Rhd8 {[%emt 0:00:26]} 29. Kc1 {[%emt 0:05:25]} g5 {[%emt 0:04:06]} 30. Ne2 {[%emt 0:02:21]} Bc6 {[%emt 0:03:33]} 31. Nc3 {[%emt 0:01:27]} e5 {[%emt 0:04:32]} 32. Bd3 {[%emt 0:04:27]} b5 {[%emt 0:07:30]} 33. cxb5 {[%emt 0:04:08]} Nxd3+ {[%emt 0:01:08]} 34. Rexd3 {[%emt 0:00:37]} Rxd3 {[%emt 0:00:06]} 35. Rxd3 {[%emt 0:00:05]} Bxb5 {[%emt 0:00:05]} 36. Re3 {[%emt 0:00:09]} Bc6 {[%emt 0:06:05]} 37. Kd2 {[%emt 0:01:42]} Rd8+ {[%emt 0:03:29]} 38. Ke2 {[%emt 0:00:09]} Ke6 {[%emt 0:03:01]} 39. Ne4 {[%emt 0:03:54]} Kf5 {[%emt 0:05:26]} 40. Nf2 {[%emt 0:02:14]} Bb5+ {[%emt 0:01:29]} 41. Ke1 {[%emt 0:31:07]} Rc8 {[%emt 0:31:03]} 42. Kd2 {[%emt 0:03:22]} Ke6 {[%emt 0:00:00]} 43. g4 {[%emt 0:00:00]} hxg3 {[%emt 0:00:00]} 44. hxg3 {[%emt 0:00:00]} f5 {[%emt 0:00:00]} 45. Nd3 {[%emt 0:00:00]} (45. Nh3 $11) 45... Bxd3 $17 {[%emt 0:00:00]} 46. Kxd3 {[%emt 0:00:00]} (46. Rxd3 $17 {was called for.} Rh8 47. Re3) 46... Rc1 {[%emt 0:00:00]} 47. a4 $2 {[%emt 0:00:00]} (47. g4 $17 {might work better.}) 47... Kd5 {[%emt 0:00:00]} (47... Rg1 48. f4 e4+ 49. Kd4 $17) 48. Kd2 {[%emt 0:00:40] [#]} Rg1 $1 {[%emt 0:00:00]} 49. Rd3+ {[%emt 0:00:34]} Ke6 {[%emt 0:00:00]} 50. f4 $2 {[%emt 0:00:35]} (50. g4 fxg4 51. fxg4) 50... e4 $19 {[%emt 0:00:00]} (50... gxf4 51. gxf4 e4 (51... exf4 52. Rd8 $11) 52. Rd8 $17) 51. Rc3 {[%emt 0:00:32]} (51. Re3 $142 gxf4 52. gxf4) 51... Rg2+ $19 {[%emt 0:00:00]} 52. Ke1 {[%emt 0:00:38]} gxf4 {[%emt 0:00:00]} 53. gxf4 {[%emt 0:00:07]} Kd5 {[%emt 0:00:00]} 54. Rc8 {[%emt 0:02:36]} Kd4 {[%emt 0:00:14]} 55. Kf1 {[%emt 0:00:10]} Rg4 $2 {[%emt 0:00:08]} (55... Ra2 56. Rf8 Ke3 57. Rxf5 Kf3 58. Kg1 e3 59. Rxa5 e2 (59... Kxf4 60. Kf1 $11) 60. Re5 Ra1+ (60... Kxf4 $2 61. Re8 $19) 61. Kh2 e1=Q (61... e1=B $2 62. Rg5 $19) 62. Rxe1 Rxe1 63. f5 Rb1 64. f6 Rxb3 65. f7 Rb8 66. Kg1 Rh8 (66... Rf8 {is a self mate.} 67. Kf1 Rxf7 68. Ke1 Rd7 69. a5 Rd4 70. a6 Ke3 71. Kf1 Rg4 72. a7 Rg8 73. a8=B Rxa8 74. Kg2 Rg8+ 75. Kh3 Kf4 76. Kh2 Kf3 77. Kh1 Kf2 78. Kh2 Rh8#) 67. a5 Rf8 68. Kf1 Rxf7 69. Ke1 Rd7 70. a6 Ke3 71. Kf1 Rg7 72. a7 Rxa7 73. Kg2 Rg7+ 74. Kh3 Kf4 75. Kh2 Kf3 76. Kh1 Kf2 77. Kh2 Rh7#) 56. Ra8 $2 {[%emt 0:00:21]} (56. Ke2) 56... Ke3 $19 {[%emt 0:03:33]} 57. Rxa5 {[%emt 0:00:32]} Rxf4+ {[%emt 0:00:10]} 58. Kg2 {[%emt 0:01:03]} Rf2+ {[%emt 0:00:04]} 59. Kg1 {[%emt 0:00:17]} f4 {[%emt 0:00:10]} 60. Rc5 {[%emt 0:00:50]} Rb2 {[%emt 0:00:44]} 61. Rc3+ {[%emt 0:01:53]} Kd4 {[%emt 0:04:10]} 62. Rc4+ {[%emt 0:00:10]} Kd3 {[%emt 0:00:03]} 63. Rb4 {[%emt 0:00:26]} f3 {[%emt 0:00:15]} 64. Rb8 {[%emt 0:01:21]} e3 {[%emt 0:00:07]} 65. a5 {[%emt 0:00:42]} Rb1+ {[%emt 0:00:43]} 66. Kh2 {[%emt 0:00:04]} f2 {[%emt 0:00:41]} 0-1